bitfinex/quotes_BTCUSD_20240627
["timestamp","ask_amount","ask_price","bid_price","bid_amount"]
[1719499291682,0.02520892,62134.0,62133.0,0.009229]
[1719499291895,0.04520892,62134.0,62133.0,0.009229]
[1719499292647,0.34620892,62134.0,62133.0,0.009229]
[1719499292928,0.44620892,62134.0,62133.0,0.009229]
[1719499293108,0.44720892,62134.0,62133.0,0.010229]
[1719499293427,0.45220892,62134.0,62133.0,0.011229]
[1719499293628,0.45120892,62134.0,62133.0,0.010229]
[1719499294043,0.45120892,62134.0,62133.0,0.011229]
[1719499294238,0.57149433,62134.0,62133.0,0.011229]
[1719499294444,0.59704835,62134.0,62133.0,0.011229]
[1719499294675,0.45120892,62134.0,62133.0,0.011229]
[1719499295945,0.69450892,62134.0,62133.0,0.011229]
[1719499296829,0.89450892,62134.0,62133.0,0.011229]
[1719499297237,1.01468928,62134.0,62133.0,0.011229]
[1719499297971,1.37702826,62134.0,62133.0,0.011229]
[1719499298268,1.51347799,62134.0,62133.0,0.011229]
[1719499298470,1.51347799,62134.0,62130.0,1e-08]
[1719499298471,0.42,62131.0,62130.0,1e-08]
[1719499298674,0.3013,62121.0,62118.0,0.000924]
[1719499300147,0.33343,62121.0,62118.0,0.000924]
[1719499300777,0.3013,62121.0,62118.0,0.000924]
[1719499301454,0.36233898,62130.0,62118.0,0.246724]
[1719499301455,0.3128,62130.0,62118.0,0.246724]
[1719499301637,0.02521861,62129.0,62118.0,0.246724]
[1719499302405,0.02521861,62129.0,62119.0,0.02]
[1719499303034,0.02521861,62129.0,62118.0,0.246724]
[1719499303273,0.12521861,62129.0,62118.0,0.266724]
[1719499303402,0.12521861,62129.0,62119.0,0.02]
[1719499303403,0.254,62129.0,62119.0,0.02]
[1719499303608,0.266,62129.0,62118.0,0.266724]
[1719499303861,0.266,62129.0,62119.0,0.02]
[1719499304100,0.266,62129.0,62118.0,0.266724]
[1719499304277,0.02521775,62128.0,62118.0,0.246724]
[1719499304573,0.02521775,62128.0,62119.0,0.00482115]
[1719499304944,0.02521775,62128.0,62118.0,0.246724]
[1719499305106,0.02521775,62128.0,62121.0,0.02]
[1719499305360,0.113,62129.0,62123.0,0.3144]
[1719499305361,0.013,62129.0,62123.0,0.3144]
[1719499305536,0.2,62139.0,62126.0,0.02]
[1719499305751,0.1,62138.0,62127.0,0.00479659]
[1719499305947,0.1,62138.0,62126.0,0.02]
[1719499305948,0.001,62128.0,62126.0,0.02]
[1719499306510,0.009,62129.0,62127.0,0.0047964]
[1719499306930,0.064515,62137.0,62127.0,0.0047964]
[1719499307136,0.1,62138.0,62126.0,0.02]
[1719499307335,0.009,62129.0,62126.0,0.02]
[1719499307554,0.009,62129.0,62127.0,0.0047964]
[1719499307780,0.009,62129.0,62128.0,0.50683898]
[1719499307909,0.009,62129.0,62128.0,0.52983898]
[1719499308334,0.009,62129.0,62128.0,0.79712634]
[1719499308830,0.01,62129.0,62128.0,0.79712634]
[1719499309430,0.009,62129.0,62128.0,0.79712634]
[1719499309670,0.02609597,62141.0,62140.0,0.2634]
[1719499309869,0.064507,62146.0,62140.0,0.26815297]
[1719499310049,0.02520849,62145.0,62140.0,0.26815297]
[1719499310454,0.02520849,62145.0,62140.0,0.00475297]
[1719499310455,0.12520849,62145.0,62140.0,0.00475297]
[1719499310675,0.34260849,62144.0,62140.0,0.00475297]
[1719499310917,0.34260849,62144.0,62133.0,0.02]
[1719499310918,0.12520849,62143.0,62133.0,0.02]
[1719499311059,0.02520849,62142.0,62133.0,0.02]
[1719499311256,0.02520849,62142.0,62141.0,0.00474445]
[1719499311460,0.02520849,62142.0,62140.0,0.001]
[1719499311670,0.154,62141.0,62140.0,0.001]
[1719499311867,0.34146057,62141.0,62140.0,0.001]
[1719499312093,0.27920849,62141.0,62140.0,0.001]
[1719499312271,0.27920849,62141.0,62128.0,0.77323898]
[1719499312272,0.27920849,62141.0,62130.0,0.02]
[1719499312470,0.12520849,62140.0,62131.0,0.0047637]
[1719499312709,0.25680849,62139.0,62128.0,0.2634]
[1719499312917,0.25680849,62139.0,62126.0,0.4857]
[1719499312918,0.12520849,62138.0,62126.0,0.4857]
[1719499313123,0.02520849,62137.0,62126.0,0.02]
[1719499313326,0.02520849,62137.0,62127.0,0.00477572]
[1719499313663,0.05905693,62136.0,62127.0,0.00477572]
[1719499313864,0.34510849,62135.0,62127.0,0.00477572]
[1719499314079,0.12520849,62134.0,62127.0,0.00477572]
[1719499314367,0.12520849,62134.0,62120.0,0.257324]
[1719499314368,0.02520849,62133.0,62124.0,0.02]
[1719499314557,0.05041654,62132.0,62128.0,0.00477286]
[1719499314714,0.02520849,62131.0,62122.0,0.02]
[1719499314916,0.17920849,62130.0,62129.0,0.00476999]
[1719499315118,0.27920849,62130.0,62122.0,0.02]
[1719499315321,0.27920849,62130.0,62127.0,0.001]
[1719499315322,0.12520849,62129.0,62127.0,0.001]
[1719499315560,0.02520849,62128.0,62127.0,0.001]
[1719499315761,0.02520849,62128.0,62122.0,0.02]
[1719499315945,0.02520849,62128.0,62120.0,0.020924]
[1719499316109,0.02520849,62128.0,62120.0,0.000924]
[1719499316110,0.04892352,62128.0,62120.0,0.000924]
[1719499316305,0.02520849,62127.0,62120.0,0.000924]
[1719499316538,0.2316,62123.0,62120.0,0.000924]
[1719499316744,0.02520849,62122.0,62120.0,0.000924]
[1719499316950,0.12520849,62122.0,62120.0,0.000924]
[1719499317141,0.02520849,62121.0,62120.0,0.000924]
[1719499318807,0.02510849,62121.0,62120.0,0.000924]
[1719499318925,0.001,62121.0,62120.0,0.000924]
[1719499319121,0.0009,62121.0,62120.0,0.000924]
[1719499319522,0.02600849,62121.0,62120.0,0.000924]
[1719499320362,0.02590849,62121.0,62120.0,0.000924]
[1719499322342,0.02590849,62121.0,62120.0,0.001924]
[1719499322544,0.02580849,62121.0,62120.0,0.001924]
[1719499323747,0.02570849,62121.0,62120.0,0.001924]
[1719499324741,0.41130849,62121.0,62120.0,0.001924]
[1719499325006,0.83880849,62121.0,62120.0,0.001924]
[1719499325859,0.63207995,62121.0,62120.0,0.001924]
[1719499326265,0.75250382,62121.0,62120.0,0.001924]
[1719499326466,0.63207995,62121.0,62120.0,0.000924]
[1719499326884,0.77337515,62121.0,62120.0,0.000924]
[1719499327297,0.883704,62121.0,62120.0,0.001924]
[1719499327503,0.7424088,62121.0,62120.0,0.001924]
[1719499328196,0.5884264,62121.0,62120.0,0.001924]
[1719499328404,0.56433407,62121.0,62120.0,0.001924]
[1719499329023,0.49207995,62121.0,62120.0,0.001924]
[1719499329421,0.16457995,62121.0,62120.0,0.001924]
[1719499331221,0.23684504,62121.0,62120.0,0.001924]
[1719499332118,0.26093559,62121.0,62120.0,0.001924]
[1719499332527,0.26093559,62121.0,62120.0,0.265224]
[1719499333000,0.16457995,62121.0,62120.0,0.35259747]
[1719499333201,0.06457995,62121.0,62120.0,0.29003977]
[1719499333322,0.06457995,62121.0,62120.0,0.27003977]
[1719499333828,0.05057995,62121.0,62120.0,0.26903977]
[1719499334072,0.05057995,62121.0,62120.0,0.28903977]
[1719499334273,0.12289149,62121.0,62120.0,0.28903977]
[1719499334511,0.22889149,62121.0,62120.0,0.29003977]
[1719499334678,0.22889149,62121.0,62120.0,0.29203977]
[1719499334679,0.22989149,62121.0,62120.0,0.29203977]
[1719499335130,0.22989149,62121.0,62120.0,0.27203977]
[1719499335276,0.25393559,62121.0,62120.0,0.00873977]
[1719499335645,0.2540388,62121.0,62120.0,0.00873977]
[1719499335881,0.15757995,62121.0,62120.0,0.00873977]
[1719499336280,0.27815351,62121.0,62120.0,0.00873977]
[1719499336862,0.15757995,62121.0,62120.0,0.00873977]
[1719499338261,0.15757995,62121.0,62120.0,0.003924]
[1719499339586,0.1,62121.0,62120.0,0.003924]
[1719499341115,0.24473219,62121.0,62120.0,0.003924]
[1719499341284,0.5,62121.0,62120.0,0.003924]
[1719499341516,0.3,62121.0,62120.0,0.003924]
[1719499341727,0.44472861,62121.0,62120.0,0.003924]
[1719499341900,0.3,62121.0,62120.0,0.003924]
[1719499346117,0.30084,62121.0,62120.0,0.003924]
[1719499348310,0.54573989,62121.0,62120.0,0.003924]
[1719499348559,0.34573989,62121.0,62120.0,0.003924]
[1719499348949,0.5085083,62121.0,62120.0,0.003924]
[1719499349731,0.7085083,62121.0,62120.0,0.003924]
[1719499349939,0.54573989,62121.0,62120.0,0.003924]
[1719499350148,0.34573989,62121.0,62120.0,0.003924]
[1719499350951,0.30084,62121.0,62120.0,0.003924]
[1719499351143,0.46358301,62121.0,62120.0,0.003924]
[1719499351369,0.30084,62121.0,62120.0,0.003924]
[1719499351545,0.50750154,62121.0,62120.0,0.003924]
[1719499351931,0.55169872,62121.0,62120.0,0.003924]
[1719499352132,0.507779,62121.0,62120.0,0.003924]
[1719499352773,0.600579,62121.0,62120.0,0.003924]
[1719499354038,0.800579,62121.0,62120.0,0.003924]
[1719499354244,0.63783718,62121.0,62120.0,0.003924]
[1719499354647,0.63784231,62121.0,62120.0,0.003924]
[1719499354862,0.80018129,62121.0,62120.0,0.003924]
[1719499355071,1.00018129,62121.0,62120.0,0.003924]
[1719499355276,1.33245331,62121.0,62120.0,0.003924]
[1719499355919,1.19504229,62121.0,62120.0,0.003924]
[1719499356117,0.96060829,62121.0,62120.0,0.003924]
[1719499356314,0.80018129,62121.0,62120.0,0.003924]
[1719499356715,0.80018129,62121.0,62120.0,0.00874955]
[1719499356916,0.80018129,62121.0,62120.0,0.003924]
[1719499357207,0.80018129,62121.0,62120.0,0.002924]
[1719499357411,0.80018129,62121.0,62120.0,0.00774955]
[1719499357617,0.51418129,62121.0,62120.0,0.00874955]
[1719499357832,0.51418129,62121.0,62120.0,0.00774955]
[1719499357833,0.55597898,62121.0,62120.0,0.00774955]
[1719499358156,0.55597898,62121.0,62120.0,0.000924]
[1719499358374,0.57197898,62121.0,62120.0,0.001924]
[1719499359741,0.26289657,62121.0,62120.0,0.001924]
[1719499359982,0.116,62121.0,62120.0,0.001924]
[1719499360399,0.1088,62121.0,62120.0,0.00675051]
[1719499360733,0.37183148,62121.0,62120.0,0.00675051]
[1719499361109,0.36982881,62121.0,62120.0,0.00675051]
[1719499361291,0.2068,62121.0,62120.0,0.00675051]
[1719499361476,0.2078,62121.0,62120.0,0.00675051]
[1719499361681,0.2078,62121.0,62120.0,0.001924]
[1719499361880,0.2068,62121.0,62120.0,0.001924]
[1719499362282,0.1928,62121.0,62120.0,0.000924]
[1719499362685,0.1928,62121.0,62120.0,0.003924]
[1719499362686,0.101,62121.0,62120.0,0.003924]
[1719499362905,0.0938,62121.0,62120.0,0.003924]
[1719499363109,0.1938,62121.0,62120.0,0.003924]
[1719499363876,0.2028,62121.0,62120.0,0.004924]
[1719499364886,0.22571992,62121.0,62120.0,0.004924]
[1719499365494,0.2028,62121.0,62120.0,0.004924]
[1719499366294,0.11,62121.0,62120.0,0.004924]
[1719499366495,0.2028,62121.0,62120.0,0.004924]
[1719499367301,0.11,62121.0,62120.0,0.579124]
[1719499367523,0.2028,62121.0,62120.0,0.579124]
[1719499367720,0.2028,62121.0,62120.0,0.60394826]
[1719499367925,0.2028,62121.0,62120.0,0.58394826]
[1719499368166,0.2028,62121.0,62120.0,0.60394826]
[1719499368857,0.11,62121.0,62120.0,0.66535839]
[1719499369069,0.11,62121.0,62120.0,0.60394826]
[1719499369070,0.01,62121.0,62120.0,0.60394826]
[1719499369518,0.01,62121.0,62120.0,1.03346142]
[1719499369731,0.01,62121.0,62120.0,1.03246142]
[1719499369732,0.09759765,62121.0,62120.0,1.03246142]
[1719499369965,0.1207518,62123.0,62122.0,0.79277075]
[1719499370175,0.025235,62125.0,62124.0,0.6017]
[1719499370346,0.025235,62125.0,62124.0,0.76403898]
[1719499370502,0.14493645,62128.0,62127.0,0.2853]
[1719499370702,0.24493645,62128.0,62127.0,0.2853]
[1719499370949,0.24493645,62128.0,62127.0,0.29009784]
[1719499372010,0.10058826,62134.0,62128.0,0.02]
[1719499372214,0.02483987,62141.0,62129.0,0.00479211]
[1719499372411,0.25728616,62138.0,62131.0,0.2653]
[1719499372625,0.25728616,62138.0,62132.0,0.00478351]
[1719499373228,0.001,62134.0,62132.0,0.00478351]
[1719499374788,0.1,62135.0,62132.0,0.00478351]
[1719499375186,0.1,62135.0,62132.0,0.00578351]
[1719499375708,0.1,62135.0,62132.0,0.00478351]
[1719499375869,0.101,62135.0,62132.0,0.01078351]
[1719499377090,0.101,62135.0,62132.0,0.01170751]
[1719499377303,0.109,62135.0,62132.0,0.01270751]
[1719499377506,0.13424955,62135.0,62132.0,0.01270751]
[1719499378262,0.14471293,62133.0,62132.0,0.01270751]
[1719499378442,0.24471293,62133.0,62132.0,0.01270751]
[1719499378643,0.1,62133.0,62132.0,0.01270751]
[1719499379192,0.1,62133.0,62132.0,0.00690751]
[1719499379721,0.001,62133.0,62132.0,0.01390751]
[1719499379867,0.001,62133.0,62132.0,0.01490751]
[1719499379868,0.006,62133.0,62132.0,0.01490751]
[1719499380037,0.006,62133.0,62132.0,0.010124]
[1719499383022,0.16878851,62133.0,62132.0,0.010124]
[1719499383228,0.106,62133.0,62132.0,0.010124]
[1719499385282,0.26878078,62133.0,62132.0,0.010124]
[1719499386025,0.106,62133.0,62132.0,0.010124]
[1719499386627,0.006,62133.0,62132.0,0.010124]
[1719499387039,0.16877201,62133.0,62132.0,0.010124]
[1719499387236,0.26877201,62133.0,62132.0,0.010124]
[1719499387438,0.106,62133.0,62132.0,0.010124]
[1719499388414,0.338,62133.0,62132.0,0.010124]
[1719499388782,0.106,62133.0,62132.0,0.010124]
[1719499388985,0.338,62133.0,62132.0,0.010124]
[1719499389187,0.106,62133.0,62132.0,0.010124]
[1719499389577,0.105,62133.0,62132.0,0.002124]
[1719499390200,0.005,62133.0,62132.0,0.00690333]
[1719499390742,0.0978,62133.0,62132.0,0.00690333]
[1719499390967,0.005,62133.0,62132.0,0.02690333]
[1719499391177,0.005,62133.0,62132.0,0.31260333]
[1719499391511,0.005,62133.0,62132.0,0.31160333]
[1719499391716,0.14966924,62133.0,62127.0,0.5586]
[1719499391945,0.14466924,62128.0,62124.0,0.2539]
[1719499392170,0.24466924,62127.0,62120.0,0.30792743]
[1719499392382,0.14466924,62126.0,62120.0,0.254824]
[1719499392619,0.24466924,62126.0,62120.0,0.254824]
[1719499392822,0.0928,62121.0,62120.0,0.254824]
[1719499394623,0.0928,62121.0,62120.0,0.256824]
[1719499395200,0.0928,62121.0,62120.0,0.263824]
[1719499396030,0.0928,62121.0,62120.0,0.256824]
[1719499396452,0.0938,62121.0,62120.0,0.263824]
[1719499396872,0.0938,62121.0,62120.0,0.009924]
[1719499397809,0.23853878,62121.0,62120.0,0.009924]
[1719499398042,0.33853878,62121.0,62120.0,0.009924]
[1719499398524,0.1938,62121.0,62120.0,0.009924]
[1719499398652,0.24574571,62121.0,62120.0,0.029924]
[1719499398854,0.24574571,62121.0,62120.0,0.09565204]
[1719499398855,0.101,62121.0,62120.0,0.09565204]
[1719499399085,0.101,62121.0,62120.0,0.98803716]
[1719499399282,0.001,62121.0,62120.0,0.98803716]
[1719499399483,0.001,62121.0,62120.0,0.99251179]
[1719499400022,0.001,62121.0,62120.0,0.97251179]
[1719499400232,0.0938,62121.0,62120.0,0.61910206]
[1719499401725,0.11848209,62121.0,62120.0,0.61910206]
[1719499402045,0.21848209,62121.0,62120.0,0.61910206]
[1719499402607,0.3632278,62121.0,62120.0,0.61910206]
[1719499402810,0.2704278,62121.0,62120.0,0.61910206]
[1719499403056,0.3632278,62121.0,62120.0,0.61910206]
[1719499403455,0.21848209,62121.0,62120.0,0.61910206]
[1719499408562,0.21848209,62121.0,62120.0,0.31290206]
[1719499410776,0.21848209,62121.0,62120.0,0.33290206]
[1719499410898,0.21848209,62121.0,62120.0,0.31290206]
[1719499412676,0.21848209,62121.0,62120.0,0.33290206]
[1719499413011,0.12568209,62121.0,62120.0,0.33290206]
[1719499413213,0.02568209,62121.0,62120.0,0.33290206]
[1719499413420,0.02568209,62121.0,62120.0,0.70154757]
[1719499413421,0.17065151,62121.0,62120.0,0.70154757]
[1719499413617,0.27065151,62121.0,62120.0,0.70154757]
[1719499413825,0.12568209,62121.0,62120.0,0.63530206]
[1719499414062,0.12568209,62121.0,62120.0,0.98871179]
[1719499414063,0.101,62121.0,62120.0,0.98871179]
[1719499414243,0.101,62121.0,62120.0,1.10451179]
[1719499414244,0.22179648,62121.0,62120.0,1.10451179]
[1719499414446,0.101,62121.0,62120.0,1.22510861]
[1719499414826,0.001,62121.0,62120.0,1.13230861]
[1719499415246,0.09763515,62121.0,62120.0,1.13230861]
[1719499415458,0.101,62121.0,62120.0,1.13230861]
[1719499415653,0.19762587,62121.0,62120.0,1.13230861]
[1719499415855,0.101,62121.0,62120.0,1.13230861]
[1719499416057,0.19762587,62121.0,62120.0,1.13230861]
[1719499416419,0.101,62121.0,62120.0,1.13230861]
[1719499417001,0.19762587,62121.0,62120.0,1.13230861]
[1719499417984,0.1938,62121.0,62120.0,0.77764104]
[1719499418095,0.1938,62121.0,62120.0,0.98871179]
[1719499418516,0.1938,62121.0,62120.0,0.79764104]
[1719499418929,0.1938,62121.0,62120.0,0.98871179]
[1719499419172,0.02610892,62123.0,62121.0,0.02]
[1719499419392,0.02610892,62123.0,62122.0,0.05310343]
[1719499419698,0.02449196,62128.0,62127.0,0.05310343]
[1719499419837,0.11729196,62128.0,62127.0,0.05755496]
[1719499420032,0.0928,62128.0,62127.0,0.00445153]
[1719499420236,0.0928,62128.0,62127.0,0.05310343]
[1719499420439,0.0928,62128.0,62127.0,0.05755496]
[1719499420649,0.16307212,62129.0,62123.0,0.05310343]
[1719499420859,0.232,62125.0,62124.0,0.00446]
[1719499421093,0.232,62125.0,62122.0,0.05310343]
[1719499421284,0.1,62124.0,62122.0,0.05310343]
[1719499421482,0.1,62124.0,62123.0,0.00446286]
[1719499421704,0.1,62124.0,62122.0,0.05310343]
[1719499422108,0.1,62124.0,62123.0,0.00446286]
[1719499422483,0.1,62124.0,62122.0,0.05310343]
[1719499422748,0.1,62124.0,62123.0,0.00446391]
[1719499423022,0.101,62124.0,62123.0,0.00446391]
[1719499423335,0.101,62125.0,62122.0,0.06110343]
[1719499423502,0.001,62125.0,62122.0,0.06110343]
[1719499423681,0.001,62125.0,62123.0,0.00446391]
[1719499423682,0.001,62124.0,62123.0,0.00446391]
[1719499423885,0.001,62124.0,62123.0,0.59676391]
[1719499424086,0.001,62124.0,62123.0,0.61676391]
[1719499424320,0.001,62124.0,62123.0,0.80783466]
[1719499424520,0.001,62124.0,62123.0,1.04627707]
[1719499424719,0.002,62124.0,62123.0,1.15191909]
[1719499425332,0.001,62124.0,62123.0,1.15191909]
[1719499425551,0.12281046,62124.0,62123.0,1.15991909]
[1719499425807,0.22281046,62124.0,62123.0,1.15991909]
[1719499426160,0.22281046,62124.0,62123.0,1.15191909]
[1719499426161,0.22181046,62124.0,62123.0,1.15191909]
[1719499426365,0.07247198,62129.0,62128.0,0.52077418]
[1719499426576,0.00084,62132.0,62131.0,0.52327418]
[1719499426776,0.00084,62132.0,62131.0,0.68561316]
[1719499426901,0.12081046,62145.0,62142.0,0.07310343]
[1719499426902,0.07247198,62144.0,62142.0,0.07310343]
[1719499427104,0.07247198,62148.0,62147.0,0.07310343]
[1719499427303,0.02446935,62153.0,62152.0,0.07310343]
[1719499427504,0.4235183,62163.0,62152.0,0.07310343]
[1719499427505,0.232,62163.0,62154.0,0.07310343]
[1719499427708,0.232,62163.0,62155.0,0.00436862]
[1719499427979,0.25594622,62163.0,62155.0,0.00436862]
[1719499428901,0.02394622,62163.0,62155.0,0.00436862]
[1719499429108,0.02394622,62163.0,62155.0,0.00536862]
[1719499429109,0.232,62163.0,62155.0,0.00536862]
[1719499429397,0.46542,62167.0,62155.0,0.00536862]
[1719499429591,0.232,62161.0,62155.0,0.00536862]
[1719499429958,0.1,62160.0,62155.0,0.00536862]
[1719499431807,0.1,62160.0,62155.0,0.00436862]
[1719499432865,0.1,62160.0,62155.0,0.00536862]
[1719499433071,0.101,62160.0,62155.0,0.01036862]
[1719499433276,0.101,62160.0,62155.0,0.00936862]
[1719499433474,0.101,62160.0,62155.0,0.01036862]
[1719499433475,0.232,62156.0,62155.0,0.01036862]
[1719499433789,0.332,62156.0,62155.0,0.001]
[1719499433995,0.332,62156.0,62154.0,0.05310343]
[1719499434200,0.1,62155.0,62154.0,0.05310343]
[1719499434402,0.332,62155.0,62154.0,0.05310343]
[1719499436810,0.1,62155.0,62154.0,0.65971316]
[1719499437025,0.1,62161.0,62156.0,0.02]
[1719499437230,0.1,62163.0,62156.0,0.02]
[1719499437424,0.19615803,62165.0,62156.0,0.02]
[1719499437648,0.006,62160.0,62155.0,0.50247075]
[1719499438027,0.232,62162.0,62155.0,0.50147075]
[1719499438235,0.1,62161.0,62155.0,0.50147075]
[1719499439295,0.004,62160.0,62155.0,0.50147075]
[1719499439887,0.005,62160.0,62156.0,0.02]
[1719499440303,0.005,62160.0,62158.0,0.21107075]
[1719499440460,0.005,62160.0,62158.0,0.19107075]
[1719499441237,0.004,62160.0,62158.0,0.19107075]
[1719499441729,0.004,62160.0,62159.0,0.02]
[1719499441930,0.005,62160.0,62159.0,0.02]
[1719499442354,0.001,62160.0,62159.0,0.02]
[1719499443319,0.001,62160.0,62159.0,0.02432798]
[1719499443523,0.001,62160.0,62159.0,0.00432798]
[1719499444161,0.002,62160.0,62159.0,0.00432798]
[1719499444592,0.002,62160.0,62159.0,0.02432798]
[1719499444748,0.001,62160.0,62159.0,1.06588182]
[1719499444952,0.001,62160.0,62159.0,0.96563771]
[1719499445150,0.002,62160.0,62159.0,0.97363771]
[1719499446140,0.00284,62160.0,62159.0,0.97363771]
[1719499449489,0.00284,62160.0,62159.0,1.02674114]
[1719499449662,0.00284,62160.0,62159.0,1.13050765]
[1719499450461,0.00184,62160.0,62159.0,1.12250765]
[1719499450811,0.00284,62160.0,62159.0,1.13050765]
[1719499451219,0.00184,62160.0,62159.0,1.12250765]
[1719499451620,0.00284,62160.0,62159.0,1.13050765]
[1719499452119,0.00184,62160.0,62159.0,1.13060765]
[1719499452552,0.00184,62160.0,62159.0,1.13270765]
[1719499452958,0.00084,62160.0,62159.0,1.12470765]
[1719499453185,0.00084,62160.0,62159.0,1.13470765]
[1719499453392,0.00084,62160.0,62159.0,1.14870765]
[1719499454406,0.00084,62160.0,62159.0,1.14670765]
[1719499454792,0.00184,62160.0,62159.0,1.15270765]
[1719499455205,0.00084,62160.0,62159.0,1.14670765]
[1719499455762,0.00084,62160.0,62159.0,1.13670765]
[1719499455961,0.00184,62160.0,62159.0,1.15270765]
[1719499456348,0.00184,62160.0,62159.0,1.14270765]
[1719499456667,0.00184,62160.0,62159.0,1.03894114]
[1719499457089,0.00184,62160.0,62159.0,0.70954114]
[1719499457878,0.00184,62160.0,62159.0,0.69554114]
[1719499458279,0.00284,62160.0,62159.0,0.70954114]
[1719499458929,0.00184,62160.0,62159.0,0.70354114]
[1719499459140,0.00184,62160.0,62159.0,0.72654114]
[1719499459286,0.00184,62160.0,62159.0,0.82735765]
[1719499459501,0.00184,62160.0,62159.0,0.81335765]
[1719499459666,0.00084,62160.0,62159.0,0.81735765]
[1719499459866,0.00184,62160.0,62159.0,0.83135765]
[1719499460866,0.00184,62160.0,62159.0,0.73054114]
[1719499463451,0.00184,62160.0,62159.0,0.72654114]
[1719499463795,0.00184,62160.0,62159.0,0.42504114]
[1719499464010,0.00284,62160.0,62159.0,0.23897039]
[1719499464382,0.00284,62160.0,62159.0,0.43004114]
[1719499465252,0.00284,62160.0,62159.0,0.45004114]
[1719499465456,0.00284,62160.0,62159.0,0.51945765]
[1719499468712,0.00284,62160.0,62159.0,0.45004114]
[1719499469164,0.00284,62160.0,62159.0,0.43004114]
[1719499471153,0.0277759,62160.0,62159.0,0.43004114]
[1719499471384,0.00284,62160.0,62159.0,0.43004114]
[1719499473835,0.00284,62160.0,62159.0,0.07663141]
[1719499473836,0.27844073,62160.0,62159.0,0.07663141]
[1719499474130,0.25784,62160.0,62159.0,0.07663141]
[1719499474730,0.25784,62160.0,62159.0,0.07230343]
[1719499475661,0.25784,62160.0,62159.0,0.0192]
[1719499475890,0.25784,62160.0,62159.0,0.05029843]
[1719499476244,0.25784,62160.0,62159.0,0.05039843]
[1719499478015,0.25784,62160.0,62159.0,0.05508389]
[1719499478235,0.10284,62160.0,62159.0,0.05508389]
[1719499479214,0.10284,62160.0,62159.0,0.70930148]
[1719499479415,0.19932269,62160.0,62159.0,0.73230148]
[1719499479671,0.10284,62160.0,62159.0,0.73230148]
[1719499479869,0.00284,62160.0,62159.0,0.73230148]
[1719499480083,0.10284,62160.0,62159.0,0.73230148]
[1719499480246,0.10284,62160.0,62159.0,0.73240148]
[1719499480616,0.10284,62160.0,62159.0,1.03640148]
[1719499480816,0.00284,62160.0,62159.0,1.03640148]
[1719499481363,0.00284,62160.0,62159.0,1.04640148]
[1719499481572,0.02523897,62163.0,62162.0,0.27136918]
[1719499481819,0.02523897,62163.0,62162.0,1.11891071]
[1719499482049,0.02523897,62163.0,62162.0,1.12358272]
[1719499482952,0.02523897,62163.0,62162.0,1.11358272]
[1719499483482,0.02523897,62163.0,62162.0,1.00468017]
[1719499484245,0.02623897,62163.0,62162.0,1.00568017]
[1719499484661,0.02723897,62163.0,62162.0,1.01968017]
[1719499487918,0.002,62163.0,62162.0,1.01968017]
[1719499488355,0.002,62163.0,62162.0,1.12523137]
[1719499489246,0.002,62163.0,62162.0,1.01968017]
[1719499489962,0.002,62163.0,62162.0,0.46638017]
[1719499491519,0.19845941,62163.0,62162.0,0.42338017]
[1719499491667,0.22255171,62163.0,62162.0,0.42338017]
[1719499491870,0.102,62163.0,62162.0,0.42338017]
[1719499492292,0.102,62163.0,62162.0,0.44338017]
[1719499492767,0.002,62163.0,62162.0,0.42338017]
[1719499493171,0.002,62163.0,62162.0,0.23230942]
[1719499494233,0.002,62163.0,62162.0,0.26104119]
[1719499494789,0.24469404,62166.0,62162.0,0.24604119]
[1719499494937,0.001,62163.0,62162.0,0.24604119]
[1719499495165,0.002,62163.0,62162.0,0.27704119]
[1719499495347,0.001,62163.0,62162.0,0.27704119]
[1719499495550,0.24469404,62166.0,62163.0,0.02]
[1719499495751,0.24469404,62166.0,62165.0,0.05029843]
[1719499496171,0.24469404,62166.0,62165.0,0.05495022]
[1719499496538,0.1,62166.0,62165.0,0.05495022]
[1719499496765,0.1,62168.0,62166.0,0.05029843]
[1719499497179,0.1,62168.0,62167.0,0.00464511]
[1719499498688,0.106,62168.0,62167.0,0.00564511]
[1719499499095,0.106,62168.0,62167.0,0.40575627]
[1719499499302,0.107,62168.0,62167.0,0.41175627]
[1719499499472,0.107,62168.0,62167.0,0.38505484]
[1719499500279,0.107,62168.0,62167.0,0.43535327]
[1719499500479,0.107,62168.0,62167.0,0.45835327]
[1719499500687,0.007,62168.0,62167.0,0.24428252]
[1719499500887,0.007,62168.0,62167.0,0.41535327]
[1719499501807,0.006,62168.0,62167.0,0.40935327]
[1719499502186,0.1,62169.0,62168.0,0.05029843]
[1719499502402,0.1,62169.0,62168.0,0.07029843]
[1719499502593,0.1,62169.0,62168.0,0.0749402]
[1719499502875,0.1,62169.0,62168.0,0.24601095]
[1719499503103,0.1,62169.0,62168.0,0.00464177]
[1719499503285,0.2579,62169.0,62168.0,0.00464177]
[1719499503424,0.5608,62169.0,62168.0,0.00464177]
[1719499504033,0.5608,62169.0,62167.0,0.001]
[1719499504233,0.232,62168.0,62167.0,0.001]
[1719499504439,0.5608,62169.0,62167.0,0.001]
[1719499504662,0.232,62168.0,62165.0,0.05029843]
[1719499504859,0.232,62168.0,62159.0,0.05049843]
[1719499504860,0.3115,62167.0,62159.0,0.05049843]
[1719499505069,0.3115,62161.0,62160.0,0.05029843]
[1719499506271,0.4694,62161.0,62160.0,0.05029843]
[1719499506467,0.5694,62161.0,62160.0,0.05029843]
[1719499508888,0.5704,62161.0,62160.0,0.06429843]
[1719499509290,0.5704,62161.0,62160.0,0.06929843]
[1719499509498,0.5694,62161.0,62160.0,0.005]
[1719499509696,0.5704,62161.0,62160.0,0.018]
[1719499510689,0.5704,62161.0,62160.0,0.013]
[1719499511505,0.5704,62161.0,62160.0,0.01767121]
[1719499511706,0.5704,62161.0,62160.0,0.013]
[1719499512635,0.5694,62161.0,62159.0,0.0002]
[1719499512840,0.1,62160.0,62159.0,0.0002]